bitfinex-derivatives/quotes_BTCF0:USTF0_20240913
["timestamp","ask_amount","ask_price","bid_price","bid_amount"]
[1726236584674,0.002,58297.0,58296.0,0.446564]
[1726236584983,0.002,58297.0,58296.0,0.085764]
[1726236585187,0.001,58297.0,58296.0,0.085764]
[1726236585480,0.085767,58294.0,58288.0,0.3608]
[1726236585870,0.085769,58293.0,58290.0,0.085772]
[1726236586076,0.085775,58289.0,58288.0,0.3608]
[1726236586775,1.470455,58289.0,58288.0,0.3608]
[1726236587277,1.74548,58289.0,58277.0,0.085791]
[1726236587482,0.27,58284.0,58278.0,0.085791]
[1726236587673,0.27,58280.0,58274.0,0.3608]
[1726236587877,0.27,58280.0,58276.0,0.085793]
[1726236588179,0.27,58280.0,58268.0,0.63168]
[1726236588180,0.085802,58271.0,58268.0,0.00088]
[1726236588489,0.3608,58279.0,58264.0,0.36168]
[1726236588490,0.085809,58266.0,58264.0,0.36168]
[1726236588681,0.085795,58275.0,58268.0,0.085805]
[1726236588981,0.085799,58273.0,58264.0,0.3608]
[1726236589183,0.00124,58274.0,58273.0,0.085798]
[1726236589387,0.27,58278.0,58273.0,0.085798]
[1726236589582,0.27,58274.0,58268.0,0.085804]
[1726236589786,0.27,58274.0,58264.0,0.3608]
[1726236590086,0.27,58269.0,58267.0,0.085807]
[1726236590289,0.3608,58270.0,58263.0,0.085813]
[1726236590479,0.27,58269.0,58265.0,0.3608]
[1726236590786,0.78488,58269.0,58258.0,0.3608]
[1726236591008,0.27,58265.0,58258.0,0.44662]
[1726236591286,0.3608,58270.0,58258.0,0.3608]
[1726236591287,0.27,58260.0,58258.0,0.3608]
[1726236591478,0.6308,58270.0,58258.0,0.3608]
[1726236591680,0.27,58261.0,58258.0,0.3608]
[1726236591881,0.27,58261.0,58252.0,0.3608]
[1726236592075,0.27,58266.0,58262.0,0.085814]
[1726236592476,0.51488,58265.0,58258.0,0.085819]
[1726236592672,0.001,58260.0,58259.0,0.060819]
[1726236593289,0.51592,58260.0,58259.0,0.060819]
[1726236593485,0.001,58260.0,58259.0,0.060819]
[1726236594186,0.3608,58270.0,58257.0,0.3608]
[1726236594381,0.086809,58266.0,58262.0,0.085813]
[1726236594581,0.001,58266.0,58265.0,0.08581]
[1726236594886,0.3608,58270.0,58262.0,0.3608]
[1726236595078,0.085813,58263.0,58258.0,0.3608]
[1726236595278,0.085807,58267.0,58258.0,0.3608]
[1726236595585,0.001,58266.0,58264.0,0.085811]
[1726236596084,0.001,58266.0,58258.0,0.3608]
[1726236596085,0.001,58266.0,58260.0,0.085817]
[1726236596383,0.001,58263.0,58258.0,0.3608]
[1726236596586,0.001,58263.0,58261.0,0.085815]
[1726236596779,0.001,58263.0,58262.0,0.085814]
[1726236598583,0.001,58266.0,58265.0,0.08581]
[1726236598786,0.001,58266.0,58265.0,0.44661]
[1726236599782,0.085792,58277.0,58276.0,0.085792]
[1726236599986,0.085795,58275.0,58274.0,0.3608]
[1726236600376,0.085797,58274.0,58273.0,0.085797]
[1726236600799,0.27,58282.0,58270.0,0.3608]
[1726236601296,0.085785,58282.0,58270.0,0.3608]
[1726236601481,0.085789,58280.0,58279.0,0.085789]
[1726236601984,0.36212,58284.0,58275.0,0.3608]
[1726236602189,0.3608,58284.0,58283.0,0.085784]
[1726236602389,0.00339,58290.0,58289.0,0.085775]
[1726236603684,0.00339,58290.0,58288.0,0.3608]
[1726236603884,0.00339,58290.0,58289.0,0.085775]
[1726236604996,0.00339,58290.0,58289.0,0.17155]
[1726236605182,0.085755,58303.0,58289.0,1.200455]
[1726236605487,0.01172606,58307.0,58296.0,0.3608]
[1726236605690,0.3608,58308.0,58296.0,0.446564]
[1726236605878,0.27,58312.0,58301.0,0.085756]
[1726236606194,0.27,58312.0,58299.0,0.08576]
[1726236606382,0.27,58312.0,58300.0,0.085758]
[1726236606691,0.085763,58297.0,58296.0,0.3608]
[1726236607192,0.27,58307.0,58296.0,0.3608]
[1726236607193,0.085756,58302.0,58297.0,0.085763]
[1726236607393,0.085756,58302.0,58299.0,0.085759]
[1726236607685,0.27,58307.0,58296.0,0.446564]
[1726236607889,0.085757,58302.0,58299.0,0.085759]
[1726236608189,0.27,58307.0,58299.0,0.085759]
[1726236608486,0.27,58307.0,58296.0,0.3608]
[1726236608786,0.355748,58307.0,58301.0,0.3608]
[1726236608988,0.085748,58307.0,58301.0,0.3608]
[1726236609188,0.005,58312.0,58306.0,0.6308]
[1726236609486,0.085722,58325.0,58315.0,0.085736]
[1726236609689,0.085732,58318.0,58317.0,0.3608]
[1726236610696,0.085728,58321.0,58319.0,0.085729]
[1726236611189,0.085732,58318.0,58317.0,0.3608]
[1726236611493,0.085732,58318.0,58311.0,0.63172]
[1726236611494,0.3608,58319.0,58311.0,0.00092]
[1726236611682,0.085761,58298.0,58297.0,0.3608]
[1726236611881,0.355761,58298.0,58297.0,0.3608]
[1726236612382,0.716561,58298.0,58286.0,0.446578]
[1726236612688,0.085772,58291.0,58286.0,0.3608]
[1726236612890,0.3608,58288.0,58285.0,0.085781]
[1726236613091,0.3608,58288.0,58268.0,0.3608]
[1726236613092,0.27,58287.0,58268.0,0.3608]
[1726236613388,0.085798,58274.0,58268.0,0.3608]
[1726236613584,0.3608,58278.0,58268.0,0.3608]
[1726236613790,0.3608,58278.0,58273.0,0.085798]
[1726236613977,0.085797,58274.0,58264.0,0.085811]
[1726236614185,0.3608,58278.0,58260.0,0.446617]
[1726236614186,0.6308,58272.0,58260.0,0.446617]
[1726236614388,0.3608,58272.0,58260.0,0.6308]
[1726236614591,0.3608,58280.0,58273.0,0.085798]
[1726236615377,0.3608,58280.0,58274.0,0.085796]
[1726236615790,0.3608,58283.0,58279.0,0.085789]
[1726236615993,0.3558,58283.0,58274.0,0.3608]
[1726236616288,0.3558,58283.0,58277.0,0.085792]
[1726236616690,0.002,58280.0,58277.0,0.085792]
[1726236617200,0.3558,58283.0,58277.0,0.085792]
[1726236617384,0.3578,58283.0,58277.0,0.085792]
[1726236617785,0.3578,58283.0,58269.0,0.0937]
[1726236617991,0.085787,58281.0,58274.0,0.085796]
[1726236618196,0.3578,58283.0,58274.0,0.3608]
[1726236618493,0.002,58283.0,58280.0,0.3608]
[1726236618790,0.002,58283.0,58282.0,0.446585]
[1726236619394,0.085772,58291.0,58285.0,0.08578]
[1726236619594,0.4537,58296.0,58287.0,0.3608]
[1726236619785,0.3608,58296.0,58287.0,0.3608]
[1726236620089,0.6308,58303.0,58295.0,0.3608]
[1726236620294,0.44656,58300.0,58292.0,0.3608]
[1726236620493,0.27,58293.0,58282.0,0.3608]
[1726236620790,0.27,58293.0,58275.0,0.3608]
[1726236620791,0.001,58291.0,58280.0,0.3608]
[1726236621006,0.001,58291.0,58289.0,0.3608]
[1726236621192,0.001,58291.0,58290.0,0.085773]
[1726236622281,0.3608,58306.0,58290.0,1.56608]
[1726236622485,0.005,58303.0,58302.0,0.085756]
[1726236623081,0.3608,58306.0,58302.0,0.085756]
[1726236623483,0.085756,58302.0,58301.0,0.3608]
[1726236624986,0.45955,58306.0,58302.0,0.085754]
[1726236625192,0.3738,58306.0,58305.0,0.085751]
[1726236625896,0.013,58306.0,58305.0,0.085751]
[1726236626303,0.08574,58313.0,58311.0,0.085742]
[1726236626496,0.085741,58312.0,58311.0,0.085742]
[1726236626695,0.085743,58311.0,58307.0,0.085748]
[1726236626892,0.085743,58311.0,58308.0,0.085747]
[1726236627093,0.085743,58311.0,58301.0,0.63184]
[1726236627292,0.27,58308.0,58304.0,0.085752]
[1726236627493,0.085743,58311.0,58301.0,0.3608]
[1726236628295,0.005,58313.0,58308.0,0.3608]
[1726236628504,0.005,58313.0,58312.0,0.085741]
[1726236629004,0.360739,58313.0,58312.0,0.085741]
[1726236629199,0.355739,58313.0,58312.0,0.085741]
[1726236629601,0.085745,58309.0,58308.0,0.446547]
[1726236630303,0.006,58313.0,58312.0,0.085741]
[1726236630803,0.085739,58313.0,58312.0,0.085741]
[1726236631005,0.085745,58309.0,58308.0,0.446546]
[1726236631601,0.27,58315.0,58308.0,0.3608]
[1726236631805,0.085735,58316.0,58315.0,0.085736]
[1726236632008,0.0864,58318.0,58314.0,0.3608]
[1726236632009,0.085736,58315.0,58314.0,0.3608]
[1726236632204,0.171472,58315.0,58314.0,0.3608]
[1726236632507,0.085736,58315.0,58303.0,0.3608]
[1726236632810,0.355741,58312.0,58311.0,0.3608]
[1726236632998,0.355741,58312.0,58311.0,0.446542]
[1726236633199,0.355741,58312.0,58311.0,0.085742]
[1726236633502,0.085742,58311.0,58303.0,0.3608]
[1726236633712,0.27,58306.0,58305.0,0.085751]
[1726236633895,0.085753,58304.0,58303.0,0.3608]
[1726236634400,0.27,58306.0,58304.0,0.085752]
[1726236634708,0.085753,58304.0,58303.0,0.3608]
[1726236635103,0.085753,58304.0,58291.0,0.3608]
[1726236635297,0.27,58295.0,58291.0,0.3608]
[1726236635503,0.08577,58292.0,58291.0,0.3608]
[1726236635898,0.085768,58294.0,58291.0,0.3608]
[1726236636099,0.27,58295.0,58291.0,0.3608]
[1726236636308,0.08577,58292.0,58291.0,0.3608]
[1726236636504,0.08577,58292.0,58284.0,0.3608]
[1726236636505,0.085781,58285.0,58284.0,0.3608]
[1726236637510,0.085777,58288.0,58284.0,0.3608]
[1726236637707,0.001,58285.0,58284.0,0.3638]
[1726236638312,0.001,58285.0,58284.0,0.449582]
[1726236639316,0.001,58285.0,58284.0,0.3638]
[1726236639511,0.005,58285.0,58284.0,0.446582]
[1726236639906,0.005,58285.0,58284.0,0.3608]
[1726236640102,0.085781,58285.0,58284.0,0.3608]
[1726236640303,0.089781,58285.0,58284.0,0.3608]
[1726236641014,0.090781,58285.0,58284.0,0.3608]
[1726236642512,0.090781,58285.0,58275.0,0.3608]
[1726236642513,0.275,58285.0,58275.0,0.3608]
[1726236642707,0.275,58285.0,58279.0,0.085789]
[1726236643018,0.275,58285.0,58275.0,0.446594]
[1726236643312,0.275,58285.0,58270.0,0.3608]
[1726236643313,0.085797,58274.0,58270.0,0.3608]
[1726236643527,0.3608,58286.0,58270.0,0.3608]
[1726236643528,0.085792,58278.0,58270.0,0.3608]
[1726236643722,0.443,58284.0,58275.0,0.088795]
[1726236644108,0.085791,58278.0,58275.0,0.088795]
[1726236644506,0.3608,58281.0,58275.0,0.003]
[1726236644717,0.085794,58276.0,58274.0,0.085796]
[1726236644914,0.3608,58281.0,58270.0,0.002]
[1726236644915,0.085801,58271.0,58270.0,0.002]
[1726236645522,0.00148,58275.0,58274.0,0.085797]
[1726236645817,0.3274,58290.0,58276.0,0.085794]
[1726236645818,0.00148,58290.0,58276.0,0.085794]
[1726236646021,0.085777,58288.0,58276.0,0.085794]
[1726236646320,0.085777,58288.0,58285.0,0.085781]
[1726236646519,0.085778,58287.0,58285.0,0.085781]
[1726236646718,0.27,58286.0,58282.0,0.085785]
[1726236647017,0.27,58286.0,58284.0,0.085781]
[1726236647205,0.27,58286.0,58279.0,0.3608]
[1726236647608,0.099778,58287.0,58279.0,0.3608]
[1726236647817,0.099778,58287.0,58284.0,0.085782]
[1726236648015,0.08578,58286.0,58284.0,0.085782]
[1726236648418,0.35578,58286.0,58284.0,0.085782]
[1726236648621,0.085786,58281.0,58279.0,0.3608]
[1726236648810,0.27,58281.0,58279.0,0.3608]
[1726236649509,0.085788,58280.0,58279.0,0.3608]
[1726236650117,0.171576,58280.0,58279.0,0.3608]
[1726236650323,0.085795,58276.0,58268.0,0.3608]
[1726236650626,0.085788,58280.0,58272.0,0.085799]
[1726236650820,0.085794,58276.0,58273.0,0.085798]
[1726236651008,0.085798,58274.0,58270.0,0.085802]
[1726236651208,0.085798,58274.0,58271.0,0.085801]
[1726236651421,0.27,58277.0,58268.0,0.446605]
[1726236651611,0.27,58277.0,58271.0,0.0858]
[1726236651921,0.085794,58276.0,58267.0,0.3608]
[1726236652307,0.085797,58274.0,58267.0,0.3608]
[1726236652514,0.355793,58277.0,58267.0,0.3608]
[1726236652714,0.085794,58276.0,58272.0,0.085799]
[1726236653014,0.355793,58277.0,58267.0,0.3608]
[1726236653313,0.085796,58275.0,58274.0,0.085797]
[1726236653617,0.085787,58281.0,58274.0,0.3608]
[1726236653818,0.3608,58284.0,58274.0,0.3608]
[1726236654120,0.446576,58288.0,58287.0,0.085778]
[1726236654715,0.085779,58287.0,58284.0,0.085781]
[1726236654909,0.3608,58288.0,58281.0,0.3608]
[1726236655412,0.3748,58288.0,58287.0,0.085778]
[1726236655616,0.460576,58288.0,58287.0,0.085778]
[1726236655919,1.245257,58288.0,58274.0,0.3608]
[1726236656112,0.085793,58277.0,58276.0,0.085793]
[1726236656818,0.085789,58279.0,58274.0,0.3608]
[1726236657009,0.27,58282.0,58274.0,0.3608]
[1726236657208,0.085795,58275.0,58274.0,0.3608]
[1726236658013,0.085791,58278.0,58275.0,0.085795]
[1726236658418,0.085791,58278.0,58269.0,0.3608]
[1726236658419,0.27,58277.0,58272.0,0.085799]
[1726236658620,0.085798,58274.0,58272.0,0.085799]
[1726236658820,0.003,58275.0,58274.0,0.085797]
[1726236659325,0.085795,58276.0,58274.0,0.085797]
[1726236659525,0.27,58277.0,58271.0,0.085801]
[1726236659720,0.085798,58273.0,58271.0,0.085801]
[1726236659918,0.085798,58274.0,58270.0,0.085803]
[1726236660225,0.085794,58276.0,58269.0,0.3608]
[1726236660431,0.004,58278.0,58274.0,0.085797]
[1726236660725,0.004,58278.0,58271.0,0.0858]
[1726236660923,0.171606,58270.0,58269.0,0.3608]
[1726236661129,0.27,58272.0,58260.0,0.36176]
[1726236661329,0.446599,58273.0,58256.0,0.3608]
[1726236661330,0.085816,58261.0,58256.0,0.3608]
[1726236661514,0.085811,58265.0,58256.0,0.3608]
[1726236661824,0.085811,58265.0,58264.0,0.085811]
[1726236662124,0.085812,58264.0,58261.0,0.085815]
[1726236662321,0.085812,58264.0,58262.0,0.085814]
[1726236662718,0.085814,58262.0,58259.0,0.085818]
[1726236663026,0.085814,58262.0,58260.0,0.004]
[1726236663424,0.001,58272.0,58261.0,0.3608]
[1726236664015,0.085814,58263.0,58261.0,0.3608]
[1726236664223,0.001,58272.0,58261.0,0.3608]
[1726236664426,0.001,58272.0,58264.0,0.08581]
[1726236664625,0.085808,58267.0,58264.0,0.08581]
[1726236664816,0.085813,58264.0,58255.0,0.3608]
[1726236665017,0.085813,58264.0,58262.0,0.004]
[1726236665018,0.086813,58264.0,58262.0,0.004]
[1726236665419,0.085813,58263.0,58262.0,0.004]
[1726236665615,0.085817,58260.0,58258.0,0.08582]
[1726236665821,0.3608,58269.0,58255.0,0.085825]
[1726236665822,0.085824,58256.0,58255.0,0.085825]
[1726236666123,0.27,58264.0,58254.0,0.3608]
[1726236666326,0.171626,58263.0,58262.0,0.004]
[1726236666522,0.441626,58263.0,58262.0,0.004]
[1726236667131,0.3618,58264.0,58263.0,0.085813]
[1726236667132,0.001,58264.0,58263.0,0.085813]
[1726236667634,0.086811,58264.0,58263.0,0.085813]
[1726236667816,0.086811,58264.0,58263.0,0.446613]
[1726236668019,0.001,58264.0,58263.0,0.532426]
[1726236668222,0.3608,58269.0,58263.0,0.3608]
[1726236668223,0.2,58269.0,58263.0,0.3608]
[1726236668429,0.085806,58268.0,58263.0,0.3608]
[1726236668629,0.2,58269.0,58266.0,0.085808]
[1726236668929,0.085808,58267.0,58266.0,0.085808]
[1726236669130,0.2,58269.0,58268.0,0.085806]
[1726236669426,0.085801,58272.0,58271.0,0.0858]
[1726236669634,0.085801,58272.0,58263.0,0.5618]
[1726236669635,0.085811,58265.0,58263.0,0.446612]
[1726236669826,0.085811,58265.0,58264.0,0.085811]
[1726236670028,0.201,58269.0,58263.0,0.3608]
[1726236670029,0.285811,58264.0,58263.0,0.36168]
[1726236670226,0.285811,58264.0,58263.0,0.3608]
[1726236670924,0.285811,58264.0,58263.0,0.446613]
[1726236671131,0.2,58264.0,58263.0,0.446613]
[1726236671518,0.001,58269.0,58268.0,0.085806]
[1726236671719,0.3608,58284.0,58268.0,0.5608]
[1726236671923,0.3608,58284.0,58277.0,0.3608]
[1726236671924,0.3624,58284.0,58277.0,0.3608]
[1726236672120,0.0016,58284.0,58283.0,0.085784]
[1726236672418,0.085782,58285.0,58277.0,0.3608]
[1726236672618,0.371582,58278.0,58277.0,0.3608]
[1726236672825,0.285791,58278.0,58277.0,0.3608]
[1726236673118,0.085791,58278.0,58277.0,0.3608]
[1726236673830,0.285791,58278.0,58277.0,0.3608]
[1726236674731,0.006,58284.0,58277.0,0.3608]
[1726236675030,0.006,58278.0,58277.0,0.446592]
[1726236676129,0.085785,58282.0,58280.0,0.085788]
[1726236676334,0.085785,58282.0,58281.0,0.085786]
[1726236676826,0.10510898,58289.0,58277.0,0.3608]
[1726236676827,0.2,58289.0,58277.0,0.3608]
[1726236677032,0.08577,58292.0,58291.0,0.085771]
[1726236677330,0.11905632,58305.0,58290.0,0.2]
[1726236677535,0.085761,58299.0,58294.0,0.3608]
[1726236677732,0.085761,58298.0,58297.0,0.085763]
[1726236678030,0.085761,58298.0,58291.0,0.3608]
[1726236678031,0.085768,58294.0,58292.0,0.085769]
[1726236678531,0.2,58298.0,58296.0,0.085764]
[1726236678532,0.085762,58298.0,58296.0,0.085764]
[1726236678733,0.2,58298.0,58291.0,0.3608]
[1726236678925,0.2,58298.0,58292.0,0.08577]
[1726236679127,0.2,58298.0,58291.0,0.3608]
[1726236679323,0.285763,58298.0,58295.0,0.085766]
[1726236679527,0.2,58298.0,58295.0,0.085766]
[1726236679730,0.08577,58292.0,58291.0,0.3608]
[1726236679928,0.2,58298.0,58291.0,0.3608]
[1726236679929,0.085764,58296.0,58291.0,0.3608]
[1726236680130,0.22992468,58295.0,58291.0,0.27497626]
[1726236680332,0.11905632,58293.0,58292.0,0.08577]
[1726236680532,0.0434328,58293.0,58292.0,0.08577]
[1726236680733,0.11905632,58294.0,58293.0,0.085769]
[1726236681047,0.085764,58296.0,58294.0,0.085767]
[1726236681048,0.11905632,58296.0,58294.0,0.085767]
[1726236681338,0.04360804,58295.0,58294.0,0.085767]
[1726236681732,0.04287258,58295.0,58291.0,0.3608]
[1726236681931,0.04287258,58294.0,58285.0,0.3608]
[1726236682231,0.085775,58289.0,58288.0,0.085775]
[1726236682539,0.04287258,58289.0,58283.0,0.085783]
[1726236682736,0.04287258,58288.0,58287.0,0.085778]
[1726236684633,0.085773,58291.0,58290.0,0.085773]
[1726236684823,0.085773,58291.0,58284.0,0.3608]
[1726236684824,0.085773,58290.0,58289.0,0.3608]
[1726236685030,0.085781,58285.0,58284.0,0.3608]
[1726236685335,0.085781,58285.0,58283.0,0.085782]
[1726236685336,0.085782,58284.0,58283.0,0.3608]
[1726236685531,0.2476756,58284.0,58283.0,0.3608]
[1726236685733,0.1618936,58284.0,58283.0,0.085784]
[1726236685935,0.04248086,58284.0,58283.0,0.085784]
[1726236686235,0.006,58285.0,58284.0,0.171564]
[1726236686442,0.006,58285.0,58284.0,0.285782]
[1726236686742,0.006,58285.0,58283.0,0.085784]
[1726236686743,0.285769,58293.0,58290.0,0.085772]
[1726236686941,0.085772,58291.0,58290.0,0.085772]
[1726236688627,0.085762,58298.0,58289.0,0.3608]
[1726236688828,0.455142,58312.0,58297.0,0.2]
[1726236688829,0.085749,58307.0,58297.0,0.2]
[1726236689144,0.085749,58307.0,58306.0,0.08575]
[1726236689629,0.085744,58310.0,58309.0,0.085745]
[1726236689933,0.085738,58315.0,58306.0,0.2]
[1726236690135,0.163131,58319.0,58310.0,0.085744]
[1726236690538,0.085738,58314.0,58311.0,0.085742]
[1726236690931,0.085738,58314.0,58312.0,0.085741]
[1726236691238,0.0774,58319.0,58313.0,0.3608]
[1726236691537,0.163131,58319.0,58318.0,0.446532]
[1726236691730,0.0774,58319.0,58318.0,0.446532]
[1726236692736,0.0914,58319.0,58318.0,0.447532]
[1726236693130,0.177131,58319.0,58318.0,0.447532]
[1726236693943,0.177131,58319.0,58318.0,0.3618]
[1726236694642,0.177131,58319.0,58318.0,0.001]
[1726236695338,0.25425068,58319.0,58313.0,0.3608]
[1726236695640,0.085736,58316.0,58314.0,0.085738]
[1726236695844,0.04343794,58315.0,58314.0,0.085738]
[1726236696340,0.0914,58319.0,58317.0,0.085734]
[1726236696533,0.085735,58316.0,58313.0,0.446538]
[1726236696734,0.04276064,58315.0,58314.0,0.086738]
[1726236697745,0.014,58316.0,58315.0,0.085736]
[1726236697945,0.05681478,58316.0,58315.0,0.085736]
[1726236698441,0.014,58316.0,58315.0,0.085736]
[1726236699146,0.085732,58318.0,58317.0,0.085734]
[1726236699350,0.12858517,58318.0,58317.0,0.085734]
[1726236699532,5.3e-07,58318.0,58317.0,0.6308]
[1726236699851,0.11941274,58331.0,58330.0,0.085714]
[1726236700033,0.05023679,58331.0,58329.0,0.3608]
[1726236700239,0.11908315,58330.0,58329.0,0.446516]
[1726236700437,0.11908285,58330.0,58329.0,0.446516]
[1726236700641,0.085714,58330.0,58329.0,0.446516]
[1726236700949,0.27818285,58340.0,58330.0,0.085714]
[1726236701147,0.11908285,58340.0,58339.0,0.807301]
[1726236701348,0.0857,58340.0,58339.0,0.807301]
[1726236701550,0.0857,58340.0,58339.0,0.7216]
[1726236702046,0.085697,58342.0,58339.0,0.807301]
[1726236702247,0.0857,58340.0,58339.0,0.3608]
[1726236703045,0.0997,58340.0,58339.0,0.3618]
[1726236703561,0.014,58340.0,58339.0,0.001]
[1726236703750,0.1854,58340.0,58339.0,0.001]
[1726236704139,0.1854,58340.0,58329.0,0.3608]
[1726236704140,1.48904,58340.0,58329.0,0.3608]
[1726236704353,1.48904,58340.0,58310.0,0.085743]
[1726236704354,0.171446,58324.0,58318.0,0.004]
[1726236704542,0.085734,58317.0,58316.0,0.3608]
[1726236704849,0.085732,58318.0,58309.0,0.3608]
[1726236705057,0.085744,58310.0,58309.0,0.3608]
[1726236705643,0.266,58310.0,58298.0,0.4351]
[1726236705849,0.266,58310.0,58298.0,0.3608]
[1726236705850,0.08576,58299.0,58298.0,0.3608]
[1726236706147,0.27,58303.0,58298.0,0.3608]
[1726236706346,0.262,58303.0,58298.0,0.3608]
[1726236706545,0.355747,58308.0,58298.0,0.44656]
[1726236706746,0.085747,58308.0,58298.0,0.3608]
[1726236707058,0.0773,58323.0,58320.0,0.085729]
[1726236707242,0.085719,58327.0,58322.0,0.446526]
[1726236707443,0.0803,58331.0,58324.0,0.27]
[1726236707643,0.085708,58335.0,58329.0,0.085716]
[1726236707859,0.0803,58340.0,58335.0,0.085707]
[1726236708154,0.0803,58340.0,58334.0,0.3608]
[1726236708539,0.085702,58339.0,58334.0,0.3608]
[1726236708741,0.085702,58339.0,58334.0,0.446508]
[1726236708942,0.085702,58339.0,58335.0,0.085707]
[1726236709148,0.0803,58340.0,58338.0,0.085702]
[1726236709350,0.085698,58341.0,58339.0,0.3608]
[1726236709747,0.0811,58348.0,58339.0,0.3608]
[1726236709951,0.08569,58347.0,58345.0,0.3608]
[1726236710740,0.0811,58348.0,58345.0,0.3608]
[1726236710947,0.0811,58348.0,58344.0,0.085693]
[1726236711148,0.0811,58348.0,58347.0,0.3608]
[1726236711547,0.166788,58348.0,58347.0,0.3608]
[1726236711852,0.446476,58357.0,58349.0,0.085686]
[1726236712044,0.085677,58356.0,58347.0,0.3608]
[1726236712348,0.085677,58356.0,58347.0,0.446488]
[1726236712537,0.0811,58359.0,58355.0,0.3608]
[1726236713552,0.012,58356.0,58347.0,0.3608]
[1726236713746,0.085684,58351.0,58347.0,0.3608]
[1726236714052,0.085674,58358.0,58347.0,0.446489]
[1726236714251,0.3511,58359.0,58347.0,0.446489]
[1726236714252,0.085677,58356.0,58347.0,0.446489]
[1726236714446,0.3651,58359.0,58347.0,0.446489]
[1726236714650,0.085681,58353.0,58347.0,0.3608]
[1726236714855,0.085682,58352.0,58347.0,0.3608]
[1726236715447,0.3651,58359.0,58347.0,0.3608]
[1726236715651,0.27,58354.0,58339.0,0.36172]
[1726236715857,0.27,58349.0,58339.0,0.3608]
[1726236716154,0.0951,58359.0,58339.0,0.3608]
[1726236716155,0.27,58345.0,58339.0,0.3608]
[1726236716450,0.3608,58354.0,58335.0,0.3608]
[1726236716451,0.27,58340.0,58335.0,0.3608]
[1726236716652,0.085702,58339.0,58327.0,0.3608]
[1726236716854,0.161494,58344.0,58328.0,0.085717]
[1726236716855,0.08571,58333.0,58328.0,0.085717]
[1726236717155,0.085712,58332.0,58328.0,0.085717]
[1726236717348,0.04305889,58331.0,58327.0,0.36075327]
[1726236717655,0.04305889,58330.0,58327.0,0.36075327]
[1726236717851,0.11908285,58328.0,58322.0,0.3608]
[1726236718052,0.082725,58323.0,58322.0,0.3608]
[1726236718255,0.12578389,58323.0,58322.0,0.3608]
[1726236718447,0.24486674,58323.0,58322.0,0.3608]
[1726236719252,0.24486674,58323.0,58317.0,0.164933]
[1726236719558,0.04305889,58322.0,58320.0,0.085729]
[1726236719751,0.11923156,58323.0,58321.0,0.3608]
[1726236719957,0.085731,58319.0,58316.0,0.3608]
[1726236720149,0.0418121,58318.0,58316.0,0.3608]
[1726236720348,0.04157826,58317.0,58310.0,0.0744]
[1726236720655,0.27,58323.0,58310.0,0.0744]
[1726236720656,0.04157826,58316.0,58315.0,0.085736]
[1726236720952,0.04157826,58316.0,58310.0,0.0744]
[1726236721154,0.04157826,58315.0,58310.0,0.0744]
[1726236721351,0.003,58319.0,58314.0,0.6308]
[1726236721546,0.04135672,58318.0,58316.0,0.085734]
[1726236721744,0.04135672,58317.0,58316.0,0.085734]
[1726236721950,0.04149772,58317.0,58314.0,0.63168]
[1726236722154,0.04150215,58316.0,58314.0,0.6308]
[1726236722352,0.085728,58321.0,58314.0,0.6308]
[1726236722657,0.13606436,58325.0,58321.0,0.085728]
[1726236722848,0.085726,58323.0,58322.0,0.085726]
[1726236723048,0.17598898,58323.0,58322.0,0.085726]
[1726236723254,0.09026298,58323.0,58322.0,0.085726]
[1726236723458,0.1192548,58323.0,58322.0,0.085726]
[1726236723754,0.04176817,58323.0,58322.0,0.085726]
[1726236723965,0.04176817,58323.0,58320.0,0.3608]
[1726236724149,0.13606436,58323.0,58317.0,0.3608]
[1726236724349,0.11926172,58319.0,58317.0,0.3608]
[1726236724553,0.12735816,58318.0,58317.0,0.3608]
[1726236724857,0.17560651,58318.0,58317.0,0.3608]
[1726236725052,0.08987175,58318.0,58317.0,0.446534]
[1726236725256,0.085731,58319.0,58317.0,0.446534]
[1726236725456,0.085732,58318.0,58317.0,0.3608]
[1726236726159,0.085732,58318.0,58317.0,0.446534]
[1726236726359,0.085732,58318.0,58317.0,0.807334]
[1726236726558,0.085709,58334.0,58317.0,0.807334]
[1726236726559,0.0086,58348.0,58322.0,0.085726]
[1726236726860,0.085707,58337.0,58336.0,0.085705]
[1726236727161,0.0772,58345.0,58335.0,0.3608]
[1726236727162,0.085706,58336.0,58335.0,0.3608]
[1726236727553,0.0772,58345.0,58339.0,0.085701]
[1726236727755,0.17139,58343.0,58342.0,0.3608]
[1726236728762,0.085695,58343.0,58342.0,0.3608]
[1726236729254,0.17139,58343.0,58342.0,0.3608]
[1726236729455,0.17139,58343.0,58335.0,0.3608]
[1726236729456,0.085695,58343.0,58335.0,0.3608]
[1726236729661,0.085706,58336.0,58335.0,0.3608]
[1726236730258,0.085697,58342.0,58330.0,0.36168]
[1726236730259,0.27,58338.0,58330.0,0.36168]
[1726236730457,0.085713,58331.0,58330.0,0.3608]
[1726236730962,0.27,58334.0,58321.0,0.3608]
[1726236730963,0.085723,58325.0,58321.0,0.3608]
[1726236731261,0.085721,58326.0,58323.0,0.085724]
[1726236731449,0.085726,58322.0,58321.0,0.3608]
[1726236731659,0.27,58324.0,58316.0,0.3608]